bitfinex-derivatives/quotes_SOLF0:USTF0_20251117
["timestamp","ask_amount","ask_price","bid_price","bid_amount"]
[1763407008266,1.61,130.25,130.13,3.5]
[1763407008666,0.05240637,130.2,130.14,3.5]
[1763407009363,11.01879089,130.31,130.14,5.04]
[1763407009666,1.67,130.31,130.19,3.5]
[1763407010470,0.05639977,130.26,130.24,0.04991938]
[1763407010660,0.04892989,130.26,130.24,3.54991938]
[1763407011257,1.67,130.34,130.25,3.5]
[1763407011658,1.72,130.33,130.25,3.5]
[1763407012067,1.72,130.33,130.18,3.5]
[1763407012270,0.05088671,130.27,130.24,3.5498363]
[1763407012465,0.05106313,130.27,130.24,3.54851892]
[1763407014677,1.77106313,130.27,130.24,0.04851892]
[1763407015170,0.05106313,130.27,130.24,3.54851892]
[1763407020278,15.27384825,130.35,130.24,3.54851892]
[1763407020482,29.38,130.43,130.24,3.54851892]
[1763407020483,1.77,130.49,130.36,3.5]
[1763407020689,15.32384825,130.52,130.36,3.5]
[1763407020974,1.77,130.51,130.38,3.5]
[1763407021572,0.04954044,130.46,130.44,3.5]
[1763407021775,1.77,130.45,130.44,0.05163551]
[1763407022083,1.82547407,130.46,130.44,0.05163551]
[1763407022788,0.05547407,130.46,130.44,0.05163551]
[1763407023398,0.05547407,130.46,130.44,3.31163551]
[1763407027709,1.81547407,130.46,130.44,0.05163551]
[1763407027895,1.71,130.44,130.34,3.26]
[1763407028399,1.71,130.42,130.34,3.26]
[1763407028800,1.71,130.42,130.37,0.05262338]
[1763407029007,1.76057852,130.39,130.37,0.05262338]
[1763407029493,1.71,130.38,130.37,0.05262338]
[1763407029890,0.05057852,130.39,130.37,3.31262338]
[1763407030801,0.00057852,130.39,130.37,3.31262338]
[1763407031702,1.76057852,130.39,130.37,0.05262338]
[1763407032099,3.30057852,130.39,130.37,0.05262338]
[1763407032305,1.76,130.38,130.37,0.05262338]
[1763407032704,3.3,130.38,130.37,0.05262338]
[1763407034602,3.3,130.38,130.26,3.26]
[1763407034603,1.71,130.37,130.26,3.26]
[1763407034803,9.35879089,130.43,130.23,3.26]
[1763407035108,1.71,130.37,130.23,3.26]
[1763407035308,1.71,130.37,130.24,3.26]
[1763407035605,0.05002174,130.32,130.29,3.31139075]
[1763407035801,0.05002174,130.32,130.29,3.31778268]
[1763407036805,0.05002174,130.32,130.3,3.26]
[1763407037697,0.05002174,130.32,130.29,0.05778268]
[1763407038313,0.05002174,130.32,130.29,3.36778268]
[1763407038912,1.71,130.4,130.31,3.31]
[1763407039109,1.76,130.43,130.31,3.31]
[1763407040014,0.05298254,130.38,130.37,3.31]
[1763407040206,0.04853348,130.39,130.37,3.31]
[1763407040408,0.04853348,130.39,130.37,3.36577213]
[1763407040707,0.04853348,130.39,130.37,0.05577213]
[1763407041315,0.04853348,130.39,130.37,3.36577213]
[1763407041521,1.76,130.47,130.37,3.36577213]
[1763407041810,1.76,130.47,130.37,3.31]
[1763407042813,0.0521713,130.43,130.41,3.35912461]
[1763407043016,1.8621713,130.43,130.41,0.04912461]
[1763407044012,1.81,130.42,130.41,0.04912461]
[1763407044222,3.35,130.42,130.41,0.04912461]
[1763407044514,1.76,130.41,130.3,3.31]
[1763407044914,1.76,130.39,130.3,3.31]
[1763407045716,0.05558887,130.36,130.33,0.04834764]
[1763407046017,1.81558887,130.36,130.33,0.04834764]
[1763407046816,0.05558887,130.36,130.33,0.04834764]
[1763407047411,1.81558887,130.36,130.33,0.04834764]
[1763407049021,0.05558887,130.36,130.33,3.35834764]
[1763407049210,1.82,130.44,130.33,3.35834764]
[1763407049412,1.82,130.44,130.33,3.31]
[1763407049612,1.82,130.44,130.34,3.31]
[1763407049808,1.82,130.42,130.34,3.31]
[1763407050326,0.05688834,130.39,130.37,0.05144648]
[1763407051520,1.87688834,130.39,130.37,0.05144648]
[1763407051714,0.05688834,130.39,130.37,0.05144648]
[1763407052326,0.05688834,130.39,130.37,3.36144648]
[1763407052716,0.05688834,130.39,130.37,0.05144648]
[1763407053117,0.05688834,130.39,130.37,3.56144648]
[1763407053517,1.87688834,130.39,130.37,0.05144648]
[1763407055431,10.52114124,130.39,130.37,0.05144648]
[1763407055632,1.82,130.38,130.37,0.05144648]
[1763407055829,1.76,130.37,130.29,3.51]
[1763407056026,10.4042529,130.35,130.29,3.51]
[1763407056730,0.05283397,130.33,130.31,0.05422039]
[1763407057233,1.81283397,130.33,130.31,0.05422039]
[1763407060146,3.35283397,130.33,130.23,6.24]
[1763407060431,10.3542529,130.3,130.23,6.24]
[1763407060640,10.3542529,130.33,130.24,3.51]
[1763407061023,1.71,130.35,130.24,3.51]
[1763407061229,0.05872238,130.31,130.28,3.56149906]
[1763407063530,1.76872238,130.31,130.28,0.05149906]
[1763407063730,0.05872238,130.31,130.28,0.05149906]
[1763407064634,0.05872238,130.31,130.28,3.56149906]
[1763407065333,0.05872238,130.31,130.29,3.51]
[1763407065538,6.98307209,130.4,130.3,3.51]
[1763407065539,1.77,130.4,130.3,3.51]
[1763407066228,1.77,130.4,130.32,3.51]
[1763407066632,0.05171343,130.37,130.35,0.05695706]
[1763407067640,1.82171343,130.37,130.35,0.05695706]
[1763407067840,0.05171343,130.37,130.35,0.05695706]
[1763407068041,1.82171343,130.37,130.35,0.05695706]
[1763407071640,1.77,130.36,130.35,0.05695706]
[1763407072334,1.77,130.36,130.24,3.51]
[1763407072537,1.72,130.32,130.24,3.51]
[1763407072937,8.6442529,130.33,130.24,3.51]
[1763407073137,1.72,130.36,130.24,3.51]
[1763407073332,1.72,130.36,130.23,13.3519681]
[1763407073333,1.72,130.36,130.25,3.51]
[1763407073534,0.05204328,130.31,130.3,3.51]
[1763407075243,8.6442529,130.38,130.31,3.51]
[1763407075446,1.72,130.39,130.31,3.51]
[1763407075835,8.70307209,130.39,130.31,3.51]
[1763407076145,0.05687676,130.36,130.34,0.05221454]
[1763407076444,1.82651741,130.36,130.34,0.05221454]
[1763407077238,0.05651741,130.36,130.34,0.05221454]
[1763407078448,0.05651741,130.36,130.34,3.56221454]
[1763407079846,0.05651741,130.36,130.34,0.05221454]
[1763407080046,0.05651741,130.36,130.34,3.56221454]
[1763407081040,6.98307209,130.43,130.36,3.51]
[1763407081242,15.62732499,130.46,130.36,3.51]
[1763407081543,8.6442529,130.46,130.36,3.51]
[1763407081943,1.82,130.44,130.36,3.51]
[1763407082147,0.04952716,130.42,130.4,0.05531489]
[1763407082447,1.86952716,130.42,130.4,0.05531489]
[1763407082952,1.82,130.41,130.4,0.05531489]
[1763407083559,10.4642529,130.4,130.32,3.21]
[1763407084346,1.82,130.38,130.29,3.21]
[1763407084542,0.05852461,130.35,130.32,0.05198593]
[1763407085242,1.87852461,130.35,130.32,0.05198593]
[1763407085649,0.05852461,130.35,130.32,3.26198593]
[1763407086756,0.05852461,130.35,130.32,0.05198593]
[1763407086942,1.82,130.33,130.32,0.05198593]
[1763407087949,3.36,130.33,130.25,3.21]
[1763407088251,3.36,130.33,130.23,37.82]
[1763407088252,1.82,130.27,130.23,6.24]
[1763407088950,0.05154242,130.26,130.24,0.04993169]
[1763407089149,0.05154242,130.26,130.24,3.25993169]
[1763407090453,0.05154242,130.26,130.24,0.04993169]
[1763407091458,1.87154242,130.26,130.24,0.04993169]
[1763407091845,0.05154242,130.26,130.24,0.04993169]
[1763407092449,0.05154242,130.26,130.24,3.25993169]
[1763407092860,0.00154242,130.26,130.24,3.25993169]
[1763407093548,0.00154242,130.26,130.24,0.04993169]
[1763407095261,0.00154242,130.26,130.24,3.25993169]
[1763407096057,0.00154242,130.26,130.25,3.21]
[1763407096260,0.00154242,130.26,130.25,1.54]
[1763407096560,0.00154242,130.26,130.24,0.04993169]
[1763407096759,0.00154242,130.26,130.25,1.54]
[1763407097663,0.00154242,130.26,130.24,0.04993169]
[1763407098055,0.00154242,130.26,130.24,3.28993169]
[1763407102263,0.00154242,130.26,130.24,0.04993169]
[1763407105171,1.87154242,130.26,130.24,0.04993169]
[1763407106077,3.41154242,130.26,130.24,0.04993169]
[1763407106373,1.87,130.24,130.19,6.23]
[1763407106555,1.87,130.23,130.19,6.23]
[1763407107872,1.87,130.21,130.2,0.04984283]
[1763407108464,3.41,130.2,130.12,3.24]
[1763407108666,13.57639894,130.23,130.12,3.24]
[1763407108667,20.55947103,130.23,130.12,3.24]
[1763407108863,13.57639894,130.23,130.12,3.24]
[1763407109669,0.04932023,130.19,130.16,0.05148814]
[1763407112175,40.94,130.26,130.16,0.05148814]
[1763407112176,6.98307209,130.27,130.16,3.29148814]
[1763407112365,13.57639894,130.29,130.16,3.24]
[1763407112571,36.42682928,130.29,130.16,3.24]
[1763407112770,43.40990137,130.29,130.16,3.24]
[1763407113467,0.05667757,130.24,130.21,0.05456912]
[1763407113674,0.05667757,130.24,130.21,0.05041802]
[1763407114374,0.05667757,130.24,130.21,3.58041802]
[1763407115170,0.05667757,130.24,130.21,0.05041802]
[1763407116469,1.59667757,130.24,130.13,3.53]
[1763407116664,36.63639894,130.25,130.13,3.53]
[1763407116877,43.61947103,130.25,130.13,3.53]
[1763407117569,13.57639894,130.22,130.13,3.53]
[1763407117776,0.05169802,130.2,130.18,0.05085762]
[1763407118868,0.05169802,130.2,130.18,0.00085762]
[1763407119069,23.06,130.18,130.03,3.53]
[1763407119279,13.57639894,130.16,130.03,3.53]
[1763407119578,13.57639894,130.13,130.03,3.53]
[1763407120075,6.98307209,130.2,130.03,3.53]
[1763407120377,189.58594249,130.23,130.05,3.53]
[1763407120378,0.05309109,130.13,130.05,3.53]
[1763407120571,13.57639894,130.18,130.05,3.53]
[1763407120775,0.05318017,130.1,130.06,3.53]
[1763407120975,13.57639894,130.18,130.06,3.53]
[1763407121468,0.05277425,130.13,130.06,3.53]
[1763407128276,0.05277425,130.13,130.01,3.53]
[1763407128475,36.63639894,130.15,130.01,3.53]
[1763407128785,0.05451001,130.09,130.01,3.53]
[1763407129085,0.05878172,130.06,130.01,3.53]
[1763407129279,36.63639894,130.15,130.02,3.53]
[1763407130177,36.63639894,130.15,130.03,3.53]
[1763407130384,0.0495243,130.1,130.08,0.05762403]
[1763407130585,0.04902081,130.1,130.08,0.05762403]
[1763407134986,0.04902081,130.1,130.0,65.58]
[1763407134987,1.54,130.09,130.0,62.05]
[1763407135183,23.06,130.08,130.0,62.05]
[1763407136884,23.06,130.08,130.0,65.58]
[1763407137182,22.50363637,130.11,130.01,3.53]
[1763407137374,13.57639894,130.14,130.01,3.53]
[1763407137575,0.05790221,130.07,130.0,62.05]
[1763407140382,0.05790221,130.07,130.0,65.58]
[1763407140890,0.05790221,130.07,130.01,3.53]
[1763407143479,92.28,130.17,130.03,3.45]
[1763407144093,189.58594249,130.23,130.0,62.05]
[1763407144094,203.16234143,130.23,130.06,3.45]
[1763407144286,267.01492193,130.23,130.06,3.45]
[1763407144489,23.06,130.22,130.06,3.45]
[1763407144888,23.06,130.22,130.05,20.50329894]
[1763407144889,0.05645775,130.15,130.13,0.05436015]
[1763407145085,0.05176351,130.15,130.13,0.05065885]
[1763407145588,273.99799402,130.23,130.13,3.50065885]
[1763407145589,212.33852299,130.23,130.13,3.50065885]
[1763407145894,212.33852299,130.23,130.13,3.45]
[1763407146697,235.39852299,130.23,130.13,3.45]
[1763407146989,0.05739623,130.19,130.17,0.05484441]
[1763407151296,0.05739623,130.19,130.17,3.50484441]
[1763407151993,0.05739623,130.19,130.17,0.05484441]
[1763407154390,0.05739623,130.19,130.17,3.50484441]
[1763407155497,0.05739623,130.19,130.17,0.05484441]
[1763407155693,23.06,130.18,130.09,3.45]
[1763407155895,23.06,130.14,130.02,3.45]
[1763407156101,30.04307209,130.14,130.02,3.45]
[1763407156302,23.06,130.14,130.02,3.45]
[1763407156703,13.57639894,130.12,130.02,3.45]
[1763407157001,0.05721706,130.09,130.07,0.05156429]
[1763407157400,36.693616,130.09,130.07,0.05156429]
[1763407157902,38.233616,130.09,130.07,0.05156429]
[1763407158809,38.233616,130.09,130.0,62.05]
[1763407159005,36.63639894,130.09,130.0,62.05]
[1763407159709,0.04947563,130.06,130.0,62.05]
[1763407161814,41.1,130.05,130.0,62.05]
[1763407162310,41.1,130.05,130.0,65.55]
[1763407162913,0.04947563,130.06,130.0,65.55]
[1763407162914,41.14947563,130.06,130.0,65.55]
[1763407163313,0.04947563,130.06,130.0,65.55]
[1763407164813,0.04947563,130.06,130.0,62.05]
[1763407165710,36.68587457,130.06,130.0,62.05]
[1763407166012,30.04307209,130.01,129.94,3.29217677]
[1763407166320,36.68834778,129.99,129.94,3.29217677]
[1763407166706,41.08,129.98,129.94,3.29217677]
[1763407167014,0.05194884,129.99,129.95,3.5]
[1763407167512,0.05194884,129.99,129.96,5.04]
[1763407167816,0.05194884,129.99,129.97,3.5]
[1763407168212,0.05194884,129.99,129.98,3.5]
[1763407168514,14.86,130.07,129.98,3.5]
[1763407168718,8.69530025,130.08,129.98,3.5]
[1763407169012,39.05530025,130.11,129.99,3.5]
[1763407169609,0.05763127,130.06,130.04,3.55436632]
[1763407169811,0.054251,130.06,130.04,3.55436632]
[1763407170415,0.054251,130.06,130.04,0.05436632]
[1763407171307,0.054251,130.06,129.94,3.29217677]
[1763407171308,1.594251,130.06,129.95,3.5]
[1763407171510,31.75530025,130.07,129.95,3.5]
[1763407171511,8.69530025,130.04,129.95,3.5]
[1763407172516,8.69530025,130.07,129.95,3.5]
[1763407172814,0.05001123,130.02,129.95,3.5]
[1763407174928,23.06,129.99,129.94,3.29217677]
[1763407175125,8.69530025,129.97,129.94,3.29217677]
[1763407175315,31.75530025,129.97,129.94,3.29217677]
[1763407175622,8.69530025,129.97,129.94,3.29217677]
[1763407175919,0.05022748,129.98,129.94,6.48217677]
[1763407176223,0.05022748,129.98,129.94,3.29217677]
[1763407176816,0.05022748,129.98,129.94,6.48217677]
[1763407177118,0.05022748,129.98,129.94,3.29217677]
[1763407177317,0.05022748,129.98,129.9,3.19]
[1763407177318,8.69530025,129.96,129.9,3.19]
[1763407177520,8.69530025,129.96,129.69,14.1770685]
[1763407177521,8.69530025,129.93,129.8,3.19]
[1763407177819,0.04979123,129.88,129.8,3.19]
[1763407178015,132.69530025,129.92,129.8,3.19]
[1763407178421,8.69530025,129.81,129.72,3.19]
[1763407178614,8.69530025,129.84,129.72,3.19]
[1763407178827,0.04945517,129.79,129.72,3.19]
[1763407179623,222.1051393,129.91,129.72,3.19]
[1763407179821,8.69530025,129.85,129.72,3.19]
[1763407180220,8.69530025,129.82,129.72,3.19]
[1763407180529,8.69530025,129.79,129.72,3.19]
[1763407181533,0.05807359,129.77,129.75,3.19]
[1763407181832,8.69530025,129.86,129.75,3.19]
[1763407182022,8.69530025,129.83,129.75,3.19]
[1763407182424,8.69530025,129.84,129.75,3.19]
[1763407182619,8.69530025,129.8,129.68,3.19]
[1763407182826,8.69530025,129.8,129.69,3.19]
[1763407183028,0.05219561,129.75,129.69,3.19]
[1763407183533,0.05219561,129.75,129.71,0.05796914]
[1763407183731,0.00134533,129.74,129.71,3.24796914]
[1763407183925,8.69530025,129.79,129.71,3.19]
[1763407184224,31.75530025,129.84,129.71,3.19]
[1763407184425,8.69530025,129.78,129.71,3.19]
[1763407184630,31.75530025,129.84,129.71,3.19]
[1763407184631,8.69530025,129.79,129.71,3.19]
[1763407184931,0.04940671,129.76,129.74,0.05084748]
[1763407186231,0.04940671,129.76,129.74,3.24084748]
[1763407186727,8.69530025,129.82,129.74,3.24084748]
[1763407186918,8.69530025,129.82,129.74,3.19]
[1763407187331,8.69530025,129.85,129.74,3.19]
[1763407187729,0.05644818,129.81,129.78,0.05075457]
[1763407188023,8.69530025,129.89,129.8,3.19]
[1763407188628,8.69530025,129.86,129.8,3.19]
[1763407188836,0.04890527,129.84,129.82,0.051029]
[1763407190429,0.04890527,129.84,129.82,3.241029]
[1763407191724,0.04890527,129.84,129.82,0.051029]
[1763407192334,0.04890527,129.84,129.78,3.19]
[1763407192531,8.69530025,129.82,129.72,3.19]
[1763407193125,8.69530025,129.79,129.72,3.19]
[1763407193330,0.05581868,129.77,129.75,3.19]
[1763407193532,0.05155858,129.77,129.75,3.24556162]
[1763407194131,8.69530025,129.82,129.75,3.24556162]
[1763407194335,31.75530025,129.84,129.75,3.24556162]
[1763407194528,31.75530025,129.84,129.75,3.19]
[1763407195133,0.05766976,129.81,129.78,0.05614977]
[1763407195634,0.05766976,129.81,129.78,3.24614977]
[1763407197138,0.05766976,129.81,129.78,0.05614977]
[1763407197338,8.75297001,129.81,129.78,0.05614977]
[1763407198642,8.75297001,129.81,129.78,3.24614977]
[1763407198838,0.05766976,129.81,129.78,3.24614977]
[1763407200735,190.3651393,129.91,129.8,3.19]
[1763407200942,14.53631768,129.9,129.8,3.19]
[1763407201439,5.84101743,129.9,129.8,3.19]
[1763407201745,0.05386284,129.86,129.84,3.24683907]
[1763407201938,0.05706671,129.86,129.84,3.2470412]
[1763407203536,0.05706671,129.86,129.84,0.0570412]
[1763407203736,0.05706671,129.86,129.72,8.69530025]
[1763407203935,8.69530025,129.84,129.73,3.48]
[1763407204141,31.75530025,129.84,129.73,3.48]
[1763407204340,8.69530025,129.81,129.73,3.48]
[1763407204850,8.69530025,129.82,129.73,3.48]
[1763407205141,0.05871963,129.78,129.76,3.53828269]
[1763407207836,0.05871963,129.78,129.76,0.05828269]
[1763407208133,0.05871963,129.78,129.76,3.53828269]
[1763407208742,8.69530025,129.84,129.76,3.53828269]
[1763407209042,8.69530025,129.85,129.76,3.48]
[1763407209238,8.69530025,129.85,129.77,3.48]
[1763407209542,31.98,129.88,129.77,3.48]
[1763407209543,8.69530025,129.88,129.77,3.48]
[1763407209940,0.05874803,129.84,129.81,3.53845221]
[1763407210139,8.69530025,129.91,129.81,3.53845221]
[1763407210445,8.69530025,129.91,129.82,3.48]
[1763407210647,8.69530025,129.88,129.82,3.48]
[1763407211244,8.69530025,129.91,129.82,3.48]
[1763407211443,157.26,129.99,129.82,3.48]
[1763407211641,8.69530025,129.93,129.86,3.48]
[1763407211837,0.0546883,129.91,129.88,0.0526214]
[1763407212238,0.0546883,129.91,129.88,3.5326214]
[1763407212734,8.69530025,129.9,129.88,0.0526214]
[1763407212938,8.69530025,129.9,129.81,3.48]
[1763407213948,0.05554574,129.87,129.85,3.48]
[1763407214149,164.24307209,129.99,129.85,3.48]
[1763407214150,33.26,129.99,129.85,3.48]
[1763407214348,33.26,129.99,129.86,3.48]
[1763407214349,8.69530025,129.95,129.86,3.48]
[1763407215949,0.05770388,129.92,129.89,3.52941321]
[1763407216149,0.05638401,129.92,129.89,3.5307752]
[1763407216646,33.26,129.99,129.89,3.5307752]
[1763407216853,33.26,129.99,129.89,3.48]
[1763407217547,8.69530025,130.0,129.89,3.48]
[1763407217750,31.37958701,130.0,129.89,3.48]
[1763407217949,5.36751309,129.99,129.89,3.48]
[1763407218247,8.69530025,129.97,129.89,3.48]
[1763407218646,0.0510358,129.94,129.92,3.47482126]
[1763407219447,0.0510358,129.94,129.92,0.05482126]
[1763407219649,10.28633605,129.94,129.85,3.42]
[1763407219849,8.69530025,129.91,129.85,3.42]
[1763407221058,8.69530025,129.91,129.82,3.42]
[1763407221355,8.69530025,129.85,129.73,3.42]
[1763407221555,0.05889787,129.84,129.81,0.05794086]
[1763407221858,8.69530025,129.82,129.75,3.42]
[1763407223154,8.69530025,129.84,129.75,3.42]
[1763407223355,17.75017398,129.96,129.75,3.42]
[1763407223356,5.37224264,129.85,129.75,3.42]
[1763407223653,0.05085867,129.81,129.79,3.47433436]
[1763407223858,8.69530025,129.88,129.79,3.47433436]
[1763407224163,8.69530025,129.91,129.8,3.42]
[1763407224349,14.08603081,129.91,129.8,3.42]
[1763407224548,5.3914449,129.9,129.8,3.42]
[1763407224749,8.69530025,129.91,129.76,8.69530025]
[1763407224750,8.69530025,129.85,129.76,3.42]
[1763407224955,8.69530025,129.82,129.76,3.42]
[1763407225357,0.04963719,129.8,129.79,3.42]
[1763407225560,8.69530025,129.82,129.79,3.42]
[1763407225858,8.74859104,129.82,129.79,3.42]
[1763407226171,8.74859104,129.82,129.79,3.47438719]
[1763407227557,8.74859104,129.82,129.79,0.05438719]
[1763407227753,8.74859104,129.82,129.79,3.47438719]
[1763407227963,8.74859104,129.82,129.79,0.05438719]
[1763407228365,8.74859104,129.82,129.79,3.47438719]
[1763407228756,0.05329079,129.82,129.79,3.47438719]
[1763407229070,0.05329079,129.82,129.79,0.05438719]
[1763407231572,0.05329079,129.82,129.73,3.42]
[1763407231573,13.65945811,129.81,129.73,3.42]
[1763407233369,13.65945811,129.81,129.76,0.05669085]
[1763407233574,0.04984595,129.78,129.76,3.54669085]
[1763407234072,6.98307209,129.88,129.76,3.54669085]
[1763407234271,13.65945811,129.85,129.76,3.49]
[1763407235172,13.65945811,129.88,129.77,3.49]
[1763407235686,13.65945811,129.88,129.79,3.49]
[1763407236572,13.65945811,129.91,129.79,3.49]
[1763407236973,13.65945811,129.91,129.81,3.49]
[1763407237269,23.06,129.95,129.81,3.49]
[1763407237472,23.06,129.95,129.84,3.49]
[1763407237674,13.65945811,129.97,129.84,3.5455562]
[1763407237868,13.65945811,129.97,129.86,3.49]
[1763407239071,13.65945811,129.97,129.8,20.77142621]
[1763407239072,0.0504915,129.93,129.9,3.54469143]
[1763407239263,13.65945811,129.99,129.9,3.49]
[1763407240568,0.0556431,129.96,129.93,3.53899386]
[1763407242774,0.0556431,129.96,129.93,0.04899386]
[1763407243170,0.0556431,129.96,129.93,3.53899386]
[1763407243673,6.98307209,130.08,129.93,3.53899386]
[1763407243873,13.65945811,130.04,129.93,3.49]
[1763407245081,0.05004011,130.0,129.97,0.05521306]
[1763407245382,0.05004011,130.0,129.97,3.54521306]
[1763407247779,13.65945811,130.08,129.97,3.54521306]
[1763407247982,13.65945811,130.11,129.97,3.49]
[1763407248178,193.04286871,130.13,130.0,3.49]
[1763407248382,13.65945811,130.08,130.0,3.49]
[1763407248992,0.05551794,130.05,130.03,0.0557968]
[1763407250999,0.05551794,130.05,130.03,3.5457968]
[1763407253091,0.05551794,130.05,130.03,0.0557968]
[1763407254293,1.59551794,130.05,129.96,3.49]
[1763407254598,13.65945811,130.03,129.88,3.49]
[1763407254895,13.65945811,130.03,129.9,3.49]
[1763407255193,0.05197002,129.98,129.95,0.05082588]
[1763407255499,0.05197002,129.98,129.95,3.54875911]
[1763407255995,0.05197002,129.98,129.95,0.05875911]
[1763407256401,13.65945811,129.97,129.95,0.05875911]
[1763407256599,0.05197002,129.98,129.95,0.05875911]
[1763407256793,13.65945811,129.97,129.95,0.05875911]
[1763407256990,13.71142813,129.98,129.95,0.05875911]
[1763407258795,1.54,129.97,129.87,3.49]
[1763407258999,13.65945811,129.98,129.87,3.49]
[1763407259901,0.05283971,129.94,129.91,0.05345741]
[1763407260905,13.65945811,129.92,129.83,3.49]
[1763407261204,13.65945811,129.89,129.76,3.49]
[1763407261905,29.22,129.94,129.77,3.49]
[1763407262106,13.65945811,129.92,129.77,3.49]
[1763407262289,0.04904755,129.87,129.85,3.49]
[1763407263999,13.65945811,129.95,129.85,3.49]
[1763407265104,13.65945811,129.95,129.8,13.65945811]
[1763407265105,0.05812,129.91,129.89,3.27232252]
[1763407265303,0.05812,129.91,129.89,3.2737416]
[1763407265603,0.05812,129.91,129.89,0.0537416]
[1763407266600,0.05812,129.91,129.89,3.2737416]
[1763407267104,13.65945811,130.0,129.9,3.22]
[1763407267902,13.65945811,129.97,129.9,3.22]
[1763407268209,0.04932676,129.95,129.92,0.0500588]
[1763407268398,0.05313995,129.95,129.92,0.05852667]
[1763407268906,1.59313995,129.95,129.92,0.05852667]
[1763407269109,38.34945811,129.94,129.75,3.22]
[1763407269310,13.65945811,129.89,129.75,3.22]
[1763407269518,13.65945811,129.89,129.77,3.22]
[1763407269706,13.65945811,129.86,129.77,3.22]
[1763407269903,23.15,129.89,129.77,3.22]
[1763407270105,0.05352737,129.84,129.82,0.0518451]
[1763407270409,0.05222853,129.84,129.82,0.0518451]
[1763407270799,0.05222853,129.84,129.82,3.2718451]
[1763407271301,0.00222853,129.84,129.82,3.2718451]
[1763407272208,13.65945811,129.93,129.83,3.22]
[1763407273009,0.05825643,129.89,129.87,0.05848267]
[1763407275904,0.05825643,129.89,129.87,3.27848267]
[1763407277209,38.34945811,129.88,129.75,3.22]
[1763407277418,23.15,129.88,129.75,3.22]
[1763407277714,36.80945811,129.87,129.75,3.22]
[1763407277908,23.15,129.83,129.75,3.22]
[1763407278103,23.15,129.8,129.68,3.36]
[1763407278307,13.65945811,129.81,129.71,3.36]
[1763407278513,0.05892998,129.75,129.74,3.36]
[1763407278711,13.65945811,129.84,129.74,3.36]
[1763407278909,13.65945811,129.84,129.75,3.36]
[1763407279708,0.04856664,129.81,129.78,0.05759712]
[1763407280519,0.04856664,129.81,129.78,3.41759712]
[1763407281409,0.04856664,129.81,129.78,0.05759712]
[1763407281815,0.04856664,129.81,129.78,3.41759712]
[1763407282312,13.70802475,129.81,129.78,0.05759712]
[1763407282510,13.70802475,129.81,129.7,3.36]
[1763407282511,1.54,129.8,129.7,3.36]
[1763407282713,13.65945811,129.78,129.7,3.36]
[1763407283510,0.05131336,129.75,129.73,0.05414045]
[1763407283913,0.05131336,129.75,129.73,3.41414045]
[1763407284217,0.05131336,129.75,129.73,0.05414045]
[1763407286321,0.05131336,129.75,129.73,3.41414045]
[1763407286908,0.05131336,129.75,129.73,0.05414045]
[1763407287112,0.05131336,129.75,129.73,3.41414045]
[1763407287321,0.05131336,129.75,129.73,4.95414045]
[1763407287522,0.05131336,129.75,129.74,3.36]
[1763407287725,13.65945811,129.82,129.74,3.36]
[1763407288018,22.70072226,129.84,129.74,3.36]
[1763407288224,13.65945811,129.85,129.74,3.36]
[1763407288612,38.0,129.92,129.78,0.05372037]
[1763407288613,13.65945811,129.82,129.78,0.05372037]
[1763407288820,13.65945811,129.82,129.7,3.36]
[1763407289221,0.05652512,129.77,129.75,0.05482237]
[1763407289421,0.05449236,129.77,129.75,0.05482237]
[1763407289722,0.05449236,129.77,129.75,3.41482237]
[1763407291918,0.05449236,129.77,129.75,0.05482237]
[1763407293222,32.32404113,129.85,129.76,4.94]
[1763407293522,8.71872609,129.88,129.76,3.4]
[1763407293721,8.71872609,129.88,129.8,6.9404]
[1763407293925,23.15,129.97,129.69,8.71872609]
[1763407293926,22.6809926,129.9,129.81,3.4]
[1763407294222,8.71872609,130.0,129.85,10.3377]
[1763407294524,8.71872609,129.96,129.86,3.4]